[Event "Open Nuevo Centro. Jornada 1"]
[Site "Chess.com"]
[Date "2020.06.19"]
[Round "2"]
[White "Ursariu, Nikolas Victor"]
[Black "Serradilla Revert, Rodrigo"]
[Result "1-0"]
[WhiteElo "1259"]
[BlackElo "733"]
[TimeControl "180+2"]
[EndTime "10:50:10 PDT"]
[Termination "Victoria de NikolasVictor por jaque mate"]

1. e4 {[%clk 0:02:25]} 1... e5 {[%clk 0:02:58.5]} 2. Nf3 {[%clk 0:02:25.7]} 2...
Nf6 {[%clk 0:02:56.4]} 3. Nxe5 {[%clk 0:02:25]} 3... d6 {[%clk 0:02:52.5]} 4.
Nf3 {[%clk 0:02:24.7]} 4... Nc6 {[%clk 0:02:51.6]} 5. Bb5 {[%clk 0:02:19.7]}
5... a6 {[%clk 0:02:50.2]} 6. Bxc6+ {[%clk 0:02:20]} 6... bxc6 {[%clk
0:02:49.4]} 7. d3 {[%clk 0:02:16.2]} 7... Bg4 {[%clk 0:02:35.4]} 8. h3 {[%clk
0:02:09.6]} 8... Be6 {[%clk 0:02:29.1]} 9. O-O {[%clk 0:02:07.6]} 9... d5 {[%clk
0:02:14.9]} 10. Bg5 {[%clk 0:02:05.2]} 10... h6 {[%clk 0:02:12.1]} 11. Be3
{[%clk 0:02:03.2]} 11... Bd6 {[%clk 0:02:03.5]} 12. Nc3 {[%clk 0:02:01.9]} 12...
c5 {[%clk 0:01:56.5]} 13. Ne2 {[%clk 0:01:57.8]} 13... d4 {[%clk 0:01:56.2]} 14.
Bd2 {[%clk 0:01:55.8]} 14... Nh5 {[%clk 0:01:46.2]} 15. c3 {[%clk 0:01:47.6]}
15... Qf6 {[%clk 0:01:44.8]} 16. cxd4 {[%clk 0:01:45.2]} 16... cxd4 {[%clk
0:01:42.1]} 17. Nexd4 {[%clk 0:01:44.2]} 17... Nf4 {[%clk 0:01:29]} 18. Bxf4
{[%clk 0:01:36.2]} 18... Qxf4 {[%clk 0:01:27.8]} 19. Nxe6 {[%clk 0:01:34.8]}
19... Qh2+ {[%clk 0:01:26.4]} 20. Nxh2 {[%clk 0:01:35.3]} 20... Bxh2+ {[%clk
0:01:23.3]} 21. Kxh2 {[%clk 0:01:35.4]} 21... fxe6 {[%clk 0:01:19.1]} 22. d4
{[%clk 0:01:32.5]} 22... O-O {[%clk 0:01:09.7]} 23. d5 {[%clk 0:01:32.2]} 23...
exd5 {[%clk 0:01:08.1]} 24. Qxd5+ {[%clk 0:01:31.4]} 24... Rf7 {[%clk
0:00:53.9]} 25. Qxa8+ {[%clk 0:01:30.4]} 25... Kh7 {[%clk 0:00:51.4]} 26. Qxa6
{[%clk 0:01:27]} 26... g5 {[%clk 0:00:45]} 27. Qd3 {[%clk 0:01:21.3]} 27... c6
{[%clk 0:00:42.2]} 28. e5+ {[%clk 0:01:21.4]} 28... Kg7 {[%clk 0:00:35]} 29. e6
{[%clk 0:01:20.2]} 29... Re7 {[%clk 0:00:26]} 30. Qd6 {[%clk 0:01:17.2]} 30...
Kg6 {[%clk 0:00:16.7]} 31. Qxe7 {[%clk 0:01:15.5]} 31... Kh5 {[%clk 0:00:15.7]}
32. Qf7+ {[%clk 0:01:16]} 32... Kh4 {[%clk 0:00:14]} 33. g3# {[%clk 0:01:17.2]}
1

[Event "Open Nuevo Centro. Jornada 1"]
[Site "Chess.com"]
[Date "2020.06.19"]
[Round "2"]
[White "Lloret Ramis, Juan Jos�"]
[Black "Birnoveanu, Petru"]
[Result "1-0"]
[WhiteElo "1990"]
[BlackElo "1580"]
[TimeControl "180+2"]
[EndTime "10:50:24 PDT"]
[Termination "Victoria de Amiplim por tiempo"]

1. c4 {[%clk 0:03:01.9]} 1... g6 {[%clk 0:02:59.2]} 2. Nc3 {[%clk 0:03:02.9]}
2... Bg7 {[%clk 0:02:59]} 3. d4 {[%clk 0:03:04.4]} 3... c5 {[%clk 0:02:59.9]} 4.
d5 {[%clk 0:03:04.9]} 4... d6 {[%clk 0:03:00.3]} 5. e4 {[%clk 0:03:05]} 5... f5
{[%clk 0:03:01.1]} 6. Bd3 {[%clk 0:03:03.5]} 6... fxe4 {[%clk 0:03:01.3]} 7.
Nxe4 {[%clk 0:03:02.9]} 7... Na6 {[%clk 0:02:56.9]} 8. Nf3 {[%clk 0:03:00]} 8...
Bg4 {[%clk 0:02:56.1]} 9. h3 {[%clk 0:02:58.6]} 9... Bxf3 {[%clk 0:02:56]} 10.
Qxf3 {[%clk 0:03:00]} 10... Nc7 {[%clk 0:02:41.4]} 11. O-O {[%clk 0:02:58.5]}
11... Qd7 {[%clk 0:02:32.9]} 12. Re1 {[%clk 0:02:56.4]} 12... a6 {[%clk
0:02:12.6]} 13. Bf4 {[%clk 0:02:54.2]} 13... O-O-O {[%clk 0:02:00]} 14. Ng5
{[%clk 0:02:45.8]} 14... Nh6 {[%clk 0:01:43.6]} 15. Ne6 {[%clk 0:02:31.8]} 15...
Nxe6 {[%clk 0:01:41.9]} 16. dxe6 {[%clk 0:02:33.2]} 16... Qc7 {[%clk 0:01:24.5]}
17. Rab1 {[%clk 0:02:10.6]} 17... Rhf8 {[%clk 0:01:23.1]} 18. Qe3 {[%clk
0:02:10.5]} 18... Nf5 {[%clk 0:01:22.6]} 19. Qd2 {[%clk 0:02:04.6]} 19... Bd4
{[%clk 0:00:56.5]} 20. b4 {[%clk 0:01:51]} 20... Ng7 {[%clk 0:00:28.7]} 21. bxc5
{[%clk 0:01:17.9]} 21... dxc5 {[%clk 0:00:26.7]} 22. Bxc7 {[%clk 0:01:12.6]}
22... Kxc7 {[%clk 0:00:19.3]} 23. Re2 {[%clk 0:01:08.2]} 23... Rd6 {[%clk
0:00:08.9]} 24. Qg5 {[%clk 0:00:58.1]} 24... Rf6 {[%clk 0:00:04.7]} 25. Be4
{[%clk 0:00:50.1]} 25... b6 {[%clk 0:00:03.1]} 26. Qc1 {[%clk 0:00:43.9]} 1

[Event "Open Nuevo Centro. Jornada 1"]
[Site "Chess.com"]
[Date "2020.06.19"]
[Round "2"]
[White "M�s Ripoll, Vicente"]
[Black "Yuste Valenzuela, Alejandro"]
[Result "0-1"]
[WhiteElo "1119"]
[BlackElo "1780"]
[TimeControl "180+2"]
[EndTime "10:50:33 PDT"]
[Termination "Victoria de alejandrito290 por tiempo"]

1. e4 {[%clk 0:03:01.9]} 1... c5 {[%clk 0:03:00.3]} 2. Nf3 {[%clk 0:03:02.1]}
2... d6 {[%clk 0:03:01.4]} 3. d4 {[%clk 0:02:58.9]} 3... cxd4 {[%clk 0:03:03.3]}
4. Nxd4 {[%clk 0:02:59.3]} 4... Nf6 {[%clk 0:03:03.4]} 5. Nc3 {[%clk 0:02:58.9]}
5... g6 {[%clk 0:03:04.7]} 6. b3 {[%clk 0:02:57.4]} 6... Bg7 {[%clk 0:03:05.1]}
7. Bb2 {[%clk 0:02:58.3]} 7... O-O {[%clk 0:03:06.4]} 8. Bd3 {[%clk 0:02:56.5]}
8... Nc6 {[%clk 0:03:07.1]} 9. Nxc6 {[%clk 0:02:56.9]} 9... bxc6 {[%clk
0:03:09]} 10. Rb1 {[%clk 0:02:54]} 10... Nd7 {[%clk 0:03:06.9]} 11. O-O {[%clk
0:02:53.9]} 11... Nc5 {[%clk 0:03:06.1]} 12. Be2 {[%clk 0:02:43.9]} 12... e5
{[%clk 0:02:47.9]} 13. b4 {[%clk 0:02:27.4]} 13... Ne6 {[%clk 0:02:46.6]} 14.
Bc1 {[%clk 0:02:20]} 14... Nd4 {[%clk 0:02:32.5]} 15. Bd3 {[%clk 0:02:08.4]}
15... Be6 {[%clk 0:02:20.1]} 16. Ne2 {[%clk 0:02:08.5]} 16... Nxe2+ {[%clk
0:02:12.9]} 17. Qxe2 {[%clk 0:02:05.9]} 17... Bxa2 {[%clk 0:02:09.2]} 18. Ra1
{[%clk 0:02:00.5]} 18... Be6 {[%clk 0:02:10.3]} 19. f4 {[%clk 0:01:56.8]} 19...
exf4 {[%clk 0:02:10.2]} 20. Ra6 {[%clk 0:01:53]} 20... c5 {[%clk 0:01:45.2]} 21.
bxc5 {[%clk 0:01:47.1]} 21... dxc5 {[%clk 0:01:47.1]} 22. Bxf4 {[%clk
0:01:46.9]} 22... Qc8 {[%clk 0:01:24.7]} 23. c4 {[%clk 0:01:43.8]} 23... Qxa6
{[%clk 0:01:19.6]} 24. e5 {[%clk 0:00:18.4]} 24... Rfd8 {[%clk 0:01:08.2]} 25.
Qe3 {[%clk 0:00:16.3]} 25... Bxc4 {[%clk 0:00:59]} 26. Bxc4 {[%clk 0:00:11.3]}
26... Qxc4 {[%clk 0:01:00.9]} 27. Rc1 {[%clk 0:00:11.1]} 27... Qd4 {[%clk
0:00:59.2]} 28. Rxc5 {[%clk 0:00:08.4]} 28... Qxe3+ {[%clk 0:00:55.6]} 29. Bxe3
{[%clk 0:00:09.1]} 29... Rac8 {[%clk 0:00:52.6]} 0

[Event "Open Nuevo Centro. Jornada 1"]
[Site "Chess.com"]
[Date "2020.06.19"]
[Round "2"]
[White "Sanchez Saez, Francisco"]
[Black "Roca Cruz, Rafael"]
[Result "1-0"]
[WhiteElo "2274"]
[BlackElo "1665"]
[TimeControl "180+2"]
[EndTime "10:50:38 PDT"]
[Termination "Victoria de Pacman1995 por abandono"]

1. Nf3 {[%clk 0:03:00]} 1... b5 {[%clk 0:03:00.1]} 2. b3 {[%clk 0:02:44.3]} 2...
Bb7 {[%clk 0:03:00.4]} 3. Bb2 {[%clk 0:02:46.2]} 3... e6 {[%clk 0:03:01.4]} 4.
g3 {[%clk 0:02:47]} 4... Nf6 {[%clk 0:03:02.4]} 5. Bg2 {[%clk 0:02:48.1]} 5...
Be7 {[%clk 0:03:03.7]} 6. O-O {[%clk 0:02:49.7]} 6... O-O {[%clk 0:03:04.8]} 7.
a4 {[%clk 0:02:49.3]} 7... a6 {[%clk 0:03:04.4]} 8. d3 {[%clk 0:02:43.7]} 8...
d6 {[%clk 0:03:03.3]} 9. e4 {[%clk 0:02:44.6]} 9... Nbd7 {[%clk 0:03:03.8]} 10.
Re1 {[%clk 0:02:44.9]} 10... c5 {[%clk 0:03:04.9]} 11. Nbd2 {[%clk 0:02:41.3]}
11... Qc7 {[%clk 0:03:00.7]} 12. Qe2 {[%clk 0:02:32.5]} 12... Rfe8 {[%clk
0:02:43.9]} 13. h3 {[%clk 0:02:31.2]} 13... Nf8 {[%clk 0:02:30.9]} 14. Kh2
{[%clk 0:02:31.7]} 14... N6d7 {[%clk 0:02:25.7]} 15. e5 {[%clk 0:02:20.4]} 15...
dxe5 {[%clk 0:02:15.1]} 16. Nxe5 {[%clk 0:02:20]} 16... Bxg2 {[%clk 0:02:15.6]}
17. Kxg2 {[%clk 0:02:21.9]} 17... Bf6 {[%clk 0:02:04.1]} 18. Rab1 {[%clk
0:02:15]} 18... Nxe5 {[%clk 0:01:54.8]} 19. Bxe5 {[%clk 0:02:16.9]} 19... Bxe5
{[%clk 0:01:55.1]} 20. Qxe5 {[%clk 0:02:17]} 20... Qxe5 {[%clk 0:01:56.3]} 21.
Rxe5 {[%clk 0:02:18.9]} 21... Nd7 {[%clk 0:01:54.4]} 22. Re4 {[%clk 0:02:19.5]}
22... f6 {[%clk 0:01:02.5]} 23. f4 {[%clk 0:02:18.1]} 23... Kf7 {[%clk 0:01:03]}
24. Ra1 {[%clk 0:02:15.8]} 24... Nb6 {[%clk 0:01:00]} 25. Nf3 {[%clk 0:02:11.1]}
25... bxa4 {[%clk 0:00:57.5]} 26. bxa4 {[%clk 0:02:11.7]} 26... Nd5 {[%clk
0:00:54.4]} 27. Kf2 {[%clk 0:02:04.9]} 27... Rab8 {[%clk 0:00:54.3]} 28. Nd2
{[%clk 0:01:51.6]} 28... Rb2 {[%clk 0:00:48.3]} 29. Rc1 {[%clk 0:01:46.3]} 29...
Nb4 {[%clk 0:00:44.7]} 30. Rc4 {[%clk 0:01:29.3]} 30... Rc8 {[%clk 0:00:31.1]}
31. Ke3 {[%clk 0:01:24.8]} 31... Nd5+ {[%clk 0:00:28.1]} 32. Kf3 {[%clk
0:01:25.1]} 32... Nb6 {[%clk 0:00:23.4]} 33. Rc3 {[%clk 0:01:25.9]} 33... Nxa4
{[%clk 0:00:22]} 34. Ra3 {[%clk 0:01:26.9]} 34... Nc3 {[%clk 0:00:16.9]} 35.
Rxc3 {[%clk 0:01:27]} 1

[Event "Open Nuevo Centro. Jornada 1"]
[Site "Chess.com"]
[Date "2020.06.19"]
[Round "2"]
[White "Furio Martinez, Francisco"]
[Black "Galiana Ferrer, Oscar"]
[Result "0-1"]
[WhiteElo "910"]
[BlackElo "858"]
[TimeControl "180+2"]
[EndTime "10:50:51 PDT"]
[Termination "Victoria de CavalldeFoc2 por tiempo"]

1. d4 {[%clk 0:02:50.4]} 1... d5 {[%clk 0:03:00.3]} 2. e3 {[%clk 0:02:50.2]}
2... Nf6 {[%clk 0:03:00.5]} 3. Nf3 {[%clk 0:02:49.5]} 3... Nc6 {[%clk 0:03:00]}
4. Be2 {[%clk 0:02:46.1]} 4... e6 {[%clk 0:02:58.4]} 5. O-O {[%clk 0:02:45.9]}
5... Bd6 {[%clk 0:02:58.3]} 6. Nc3 {[%clk 0:02:46]} 6... O-O {[%clk 0:02:59]} 7.
Bd2 {[%clk 0:02:45]} 7... Bd7 {[%clk 0:02:59.9]} 8. b3 {[%clk 0:02:46]} 8... b6
{[%clk 0:02:58.6]} 9. Bc1 {[%clk 0:02:47.2]} 9... e5 {[%clk 0:02:55.1]} 10. Bb2
{[%clk 0:02:43.1]} 10... exd4 {[%clk 0:02:54.8]} 11. exd4 {[%clk 0:02:42.9]}
11... Ne4 {[%clk 0:02:50.7]} 12. Nxe4 {[%clk 0:02:40.2]} 12... dxe4 {[%clk
0:02:49.9]} 13. d5 {[%clk 0:02:39.1]} 13... exf3 {[%clk 0:02:48.5]} 14. dxc6
{[%clk 0:02:33.1]} 14... fxg2 {[%clk 0:02:46]} 15. Kxg2 {[%clk 0:02:29.7]} 15...
Bxc6+ {[%clk 0:02:41.3]} 16. Kg1 {[%clk 0:02:28.4]} 16... f6 {[%clk 0:02:33.6]}
17. Bc4+ {[%clk 0:02:24]} 17... Kh8 {[%clk 0:02:32.1]} 18. Rc1 {[%clk
0:02:13.6]} 18... Qb8 {[%clk 0:02:28.3]} 19. Be2 {[%clk 0:02:09.8]} 19... Qb7
{[%clk 0:02:27.3]} 20. c4 {[%clk 0:02:10.3]} 20... Bg2 {[%clk 0:02:26.5]} 21.
Re1 {[%clk 0:02:05]} 21... Bc6 {[%clk 0:02:24.5]} 22. c5 {[%clk 0:02:03.5]}
22... Bxc5 {[%clk 0:02:15.3]} 23. Bh5 {[%clk 0:01:31.9]} 23... Bb4 {[%clk
0:02:10.6]} 24. Re8 {[%clk 0:01:23.3]} 24... Rfxe8 {[%clk 0:02:04.1]} 25. Bxe8
{[%clk 0:01:22.8]} 25... Bxe8 {[%clk 0:02:02.2]} 26. Qg4 {[%clk 0:00:57.3]}
26... Bd6 {[%clk 0:01:44]} 27. Re1 {[%clk 0:00:32.1]} 27... Bc6 {[%clk 0:01:32]}
28. Qh5 {[%clk 0:00:31.9]} 28... h6 {[%clk 0:01:28.1]} 29. Qg6 {[%clk
0:00:19.4]} 29... a5 {[%clk 0:01:18.7]} 30. Re6 {[%clk 0:00:16]} 30... Be8
{[%clk 0:01:10.9]} 31. Rxe8+ {[%clk 0:00:12.2]} 31... Rxe8 {[%clk 0:01:10.6]}
32. Qxe8+ {[%clk 0:00:11.3]} 32... Kh7 {[%clk 0:01:10.1]} 33. Qd7 {[%clk
0:00:05.9]} 33... Bxh2+ {[%clk 0:01:09]} 34. Kxh2 {[%clk 0:00:04.5]} 34... b5
{[%clk 0:00:57.7]} 0

[Event "Open Nuevo Centro. Jornada 1"]
[Site "Chess.com"]
[Date "2020.06.19"]
[Round "2"]
[White "Mena Sancho, Angel"]
[Black "Haoyou, Deng"]
[Result "0-1"]
[WhiteElo "1507"]
[BlackElo "1810"]
[TimeControl "180+2"]
[EndTime "10:50:59 PDT"]
[Termination "Victoria de Hoyau por abandono"]

1. d4 {[%clk 0:03:00.9]} 1... Nf6 {[%clk 0:02:59]} 2. Bf4 {[%clk 0:03:01.7]}
2... e6 {[%clk 0:02:51.7]} 3. Nf3 {[%clk 0:03:00.7]} 3... d5 {[%clk 0:02:53]} 4.
e3 {[%clk 0:03:01.4]} 4... Be7 {[%clk 0:02:53.9]} 5. Nbd2 {[%clk 0:03:02.1]}
5... O-O {[%clk 0:02:55.5]} 6. Bd3 {[%clk 0:03:03]} 6... b6 {[%clk 0:02:56.6]}
7. c3 {[%clk 0:03:04]} 7... Bb7 {[%clk 0:02:57.8]} 8. Qc2 {[%clk 0:03:00.4]}
8... c5 {[%clk 0:02:58.9]} 9. dxc5 {[%clk 0:02:49.8]} 9... Bxc5 {[%clk
0:02:50.3]} 10. Ne5 {[%clk 0:02:38.7]} 10... Nc6 {[%clk 0:02:44.1]} 11. O-O-O
{[%clk 0:02:31]} 11... Rc8 {[%clk 0:02:38]} 12. g4 {[%clk 0:02:26.2]} 12... Nxe5
{[%clk 0:02:34.9]} 13. Bxe5 {[%clk 0:02:24.2]} 13... h6 {[%clk 0:02:35.8]} 14.
g5 {[%clk 0:02:23]} 14... hxg5 {[%clk 0:02:35.4]} 15. Rhg1 {[%clk 0:02:18.9]}
15... g4 {[%clk 0:02:22.1]} 16. Bxf6 {[%clk 0:02:17.6]} 16... Qxf6 {[%clk
0:02:23.2]} 17. Rxg4 {[%clk 0:02:09.9]} 17... e5 {[%clk 0:02:23.7]} 18. Bf5
{[%clk 0:02:01.4]} 18... Rc7 {[%clk 0:01:57]} 19. Bh7+ {[%clk 0:02:01.5]} 19...
Kh8 {[%clk 0:01:56.6]} 20. Rdg1 {[%clk 0:01:45.9]} 20... e4 {[%clk 0:01:48.1]}
21. Rxg7 {[%clk 0:01:30.5]} 21... Qxg7 {[%clk 0:01:50]} 22. Rxg7 {[%clk
0:01:30.8]} 22... Kxg7 {[%clk 0:01:51.9]} 23. Bf5 {[%clk 0:01:31.7]} 23... Kf6
{[%clk 0:01:48.7]} 24. Bh3 {[%clk 0:01:23.7]} 24... Rh8 {[%clk 0:01:49.2]} 25.
Bf1 {[%clk 0:01:17.6]} 25... Rxh2 {[%clk 0:01:49.9]} 26. Qd1 {[%clk 0:01:16.4]}
26... Rxf2 {[%clk 0:01:43.9]} 27. Qe1 {[%clk 0:01:17.1]} 27... Rf5 {[%clk
0:01:38.5]} 28. Qh4+ {[%clk 0:01:17.1]} 28... Ke5 {[%clk 0:01:23.8]} 29. Qg3+
{[%clk 0:01:15.4]} 29... Kf6 {[%clk 0:01:20.6]} 30. Qxc7 {[%clk 0:01:16.3]}
30... Bxe3 {[%clk 0:01:16.1]} 31. Qxb7 {[%clk 0:01:11.3]} 31... Rxf1+ {[%clk
0:01:15.2]} 32. Kc2 {[%clk 0:01:09.2]} 32... Rf2 {[%clk 0:01:14.9]} 33. Qc6+
{[%clk 0:01:09.6]} 33... Kg7 {[%clk 0:01:14.5]} 34. Qd6 {[%clk 0:00:48.1]} 34...
Rxd2+ {[%clk 0:01:13.6]} 35. Kb3 {[%clk 0:00:48.7]} 35... Bc5 {[%clk 0:01:09.2]}
36. Qg3+ {[%clk 0:00:46.4]} 36... Kf8 {[%clk 0:01:03.8]} 37. Qb8+ {[%clk
0:00:46.3]} 37... Kg7 {[%clk 0:01:03.6]} 38. Qg3+ {[%clk 0:00:46.7]} 38... Kf8
{[%clk 0:00:58]} 39. Qg5 {[%clk 0:00:47.7]} 39... Rd3 {[%clk 0:00:53]} 40. Qxd5
{[%clk 0:00:44.7]} 40... Rxd5 {[%clk 0:00:51.9]} 0

[Event "Open Nuevo Centro. Jornada 1"]
[Site "Chess.com"]
[Date "2020.06.19"]
[Round "2"]
[White "Miranda Calvo, Max Rodrigo"]
[Black "Moreno Garc�a, Gonzalo "]
[Result "1-0"]
[WhiteElo "1133"]
[BlackElo "597"]
[TimeControl "180+2"]
[EndTime "10:50:59 PDT"]
[Termination "Victoria de bas-max-miranda por jaque mate"]

1. e4 {[%clk 0:03:01.9]} 1... e5 {[%clk 0:02:57.3]} 2. Nf3 {[%clk 0:03:00.5]}
2... Nc6 {[%clk 0:02:54.8]} 3. Bc4 {[%clk 0:03:00.3]} 3... Nf6 {[%clk
0:02:53.9]} 4. Ng5 {[%clk 0:03:00.4]} 4... Qe7 {[%clk 0:02:41.1]} 5. Nxf7 {[%clk
0:02:56.4]} 5... Rg8 {[%clk 0:02:38.1]} 6. Nxe5 {[%clk 0:02:57.2]} 6... Nxe5
{[%clk 0:02:34.5]} 7. Bxg8 {[%clk 0:02:57.1]} 7... d5 {[%clk 0:02:23.9]} 8. Bxd5
{[%clk 0:02:49.9]} 8... Be6 {[%clk 0:02:12]} 9. Bxb7 {[%clk 0:02:47.7]} 9... Rd8
{[%clk 0:02:01.7]} 10. d3 {[%clk 0:02:45.2]} 10... Nfg4 {[%clk 0:01:58.1]} 11.
h3 {[%clk 0:02:35.2]} 11... Nf6 {[%clk 0:01:51.3]} 12. Bf4 {[%clk 0:02:28.3]}
12... Qb4+ {[%clk 0:01:49]} 13. c3 {[%clk 0:02:22.6]} 13... Qxb2 {[%clk
0:01:47.1]} 14. Bxe5 {[%clk 0:01:33.1]} 14... Rb8 {[%clk 0:01:42.1]} 15. Bc6+
{[%clk 0:01:29]} 15... Nd7 {[%clk 0:01:38.4]} 16. Bxd7+ {[%clk 0:01:28.8]} 16...
Bxd7 {[%clk 0:01:35.6]} 17. Nd2 {[%clk 0:01:26.7]} 17... Bd6 {[%clk 0:01:32.3]}
18. Bxd6 {[%clk 0:01:26.1]} 18... cxd6 {[%clk 0:01:31.9]} 19. Rb1 {[%clk
0:01:27]} 19... Qxa2 {[%clk 0:01:29.6]} 20. Rxb8+ {[%clk 0:01:23]} 20... Ke7
{[%clk 0:01:23.7]} 21. Rh8 {[%clk 0:01:09.1]} 21... Be8 {[%clk 0:01:18.7]} 22.
Rxh7 {[%clk 0:01:05.3]} 22... Bg6 {[%clk 0:01:15.8]} 23. Rxg7+ {[%clk
0:01:00.1]} 23... Bf7 {[%clk 0:01:12.6]} 24. Rxf7+ {[%clk 0:00:53.2]} 24... Qxf7
{[%clk 0:01:11.7]} 25. O-O {[%clk 0:00:52.3]} 25... Qe6 {[%clk 0:01:09.3]} 26.
Qb3 {[%clk 0:00:49.3]} 26... Qg6 {[%clk 0:00:57.3]} 27. Qb7+ {[%clk 0:00:45.6]}
27... Ke6 {[%clk 0:00:55.1]} 28. Qxa7 {[%clk 0:00:44.8]} 28... Qg8 {[%clk
0:00:53.6]} 29. Qa2+ {[%clk 0:00:45.2]} 29... Ke7 {[%clk 0:00:48.2]} 30. Qxg8
{[%clk 0:00:44.5]} 30... Kd7 {[%clk 0:00:46.2]} 31. Ra1 {[%clk 0:00:44.1]} 31...
Kc6 {[%clk 0:00:42.7]} 32. Ra5 {[%clk 0:00:43.8]} 32... Kb6 {[%clk 0:00:42]} 33.
Nb3 {[%clk 0:00:45.2]} 33... Kc6 {[%clk 0:00:39.1]} 34. Qc8+ {[%clk 0:00:44.8]}
34... Kb6 {[%clk 0:00:35.5]} 35. Ra6+ {[%clk 0:00:44.6]} 35... Kb5 {[%clk
0:00:32.9]} 36. Qc6# {[%clk 0:00:44.7]} 1

[Event "Open Nuevo Centro. Jornada 1"]
[Site "Chess.com"]
[Date "2020.06.19"]
[Round "2"]
[White "Teply Koutsky, David"]
[Black "Rodriguez, Mathias"]
[Result "0-1"]
[WhiteElo "1572"]
[BlackElo "2010"]
[TimeControl "180+2"]
[EndTime "10:51:27 PDT"]
[Termination "Victoria de niguil por jaque mate"]

1. d4 {[%clk 0:03:01.9]} 1... Nf6 {[%clk 0:03:00.1]} 2. c4 {[%clk 0:03:02.4]}
2... g6 {[%clk 0:02:59.2]} 3. Nc3 {[%clk 0:03:02.6]} 3... d5 {[%clk 0:02:59.9]}
4. cxd5 {[%clk 0:03:03]} 4... Nxd5 {[%clk 0:03:01.8]} 5. Bd2 {[%clk 0:03:03.3]}
5... Bg7 {[%clk 0:03:01.9]} 6. e4 {[%clk 0:03:03.1]} 6... Nxc3 {[%clk
0:03:02.8]} 7. Bxc3 {[%clk 0:03:03.8]} 7... c5 {[%clk 0:03:04]} 8. d5 {[%clk
0:03:04.1]} 8... O-O {[%clk 0:03:00]} 9. Nf3 {[%clk 0:02:59.7]} 9... e6 {[%clk
0:02:32.6]} 10. Bxg7 {[%clk 0:02:48.5]} 10... Kxg7 {[%clk 0:02:32.8]} 11. d6
{[%clk 0:02:43.9]} 11... Nc6 {[%clk 0:02:32.5]} 12. e5 {[%clk 0:02:41.6]} 12...
c4 {[%clk 0:02:16.1]} 13. Bxc4 {[%clk 0:02:39.7]} 13... Nxe5 {[%clk 0:02:14.5]}
14. Nxe5 {[%clk 0:01:51.2]} 14... Qa5+ {[%clk 0:02:14.7]} 15. Qd2 {[%clk
0:01:46.5]} 15... Qxe5+ {[%clk 0:02:15.3]} 16. Be2 {[%clk 0:01:47]} 16... Rd8
{[%clk 0:02:10.8]} 17. Rd1 {[%clk 0:01:47.3]} 17... Bd7 {[%clk 0:02:07]} 18. O-O
{[%clk 0:01:46.7]} 18... Bc6 {[%clk 0:02:07]} 19. Qd4 {[%clk 0:01:32.1]} 19...
Qxd4 {[%clk 0:02:03.8]} 20. Rxd4 {[%clk 0:01:32.5]} 20... Rd7 {[%clk 0:02:05.7]}
21. Rfd1 {[%clk 0:01:31.8]} 21... Rad8 {[%clk 0:02:06.3]} 22. b3 {[%clk
0:01:24.3]} 22... e5 {[%clk 0:02:06.6]} 23. R4d2 {[%clk 0:01:23.6]} 23... b5
{[%clk 0:01:44.5]} 24. f3 {[%clk 0:01:09.8]} 24... f5 {[%clk 0:01:44.5]} 25. Kf2
{[%clk 0:01:09.2]} 25... Kf6 {[%clk 0:01:45.3]} 26. a4 {[%clk 0:00:44.7]} 26...
a6 {[%clk 0:01:41.7]} 27. axb5 {[%clk 0:00:27.3]} 27... axb5 {[%clk 0:01:43.6]}
28. g3 {[%clk 0:00:17.2]} 28... Ke6 {[%clk 0:01:43.2]} 29. f4 {[%clk 0:00:17.9]}
29... Rxd6 {[%clk 0:01:37.6]} 30. Rxd6+ {[%clk 0:00:17.4]} 30... Rxd6 {[%clk
0:01:39.5]} 31. fxe5 {[%clk 0:00:17.1]} 31... Rxd1 {[%clk 0:01:38]} 32. Bxd1
{[%clk 0:00:17.5]} 32... Kxe5 {[%clk 0:01:39.9]} 33. Ke3 {[%clk 0:00:18.3]}
33... g5 {[%clk 0:01:38.7]} 34. Be2 {[%clk 0:00:15.2]} 34... b4 {[%clk
0:01:39.1]} 35. Bc4 {[%clk 0:00:15.4]} 35... Bd5 {[%clk 0:01:39.5]} 36. Bxd5
{[%clk 0:00:11.5]} 36... Kxd5 {[%clk 0:01:41.4]} 37. Kd3 {[%clk 0:00:12.3]}
37... f4 {[%clk 0:01:42]} 38. gxf4 {[%clk 0:00:13.2]} 38... gxf4 {[%clk
0:01:43.9]} 39. h3 {[%clk 0:00:13.4]} 39... h6 {[%clk 0:01:44]} 40. h4 {[%clk
0:00:13.9]} 40... h5 {[%clk 0:01:44.3]} 41. Kc2 {[%clk 0:00:14.7]} 41... Ke4
{[%clk 0:01:43.3]} 42. Kd2 {[%clk 0:00:14.5]} 42... f3 {[%clk 0:01:42.3]} 43.
Ke1 {[%clk 0:00:13.5]} 43... Ke3 {[%clk 0:01:41.3]} 44. Kf1 {[%clk 0:00:13.7]}
44... f2 {[%clk 0:01:41.7]} 45. Kg2 {[%clk 0:00:14.7]} 45... Ke2 {[%clk
0:01:42.8]} 46. Kg3 {[%clk 0:00:14]} 46... f1=Q {[%clk 0:01:39.4]} 47. Kh2
{[%clk 0:00:14.2]} 47... Qf4+ {[%clk 0:01:37.6]} 48. Kh3 {[%clk 0:00:14.6]}
48... Qg4+ {[%clk 0:01:36.8]} 49. Kh2 {[%clk 0:00:15.5]} 49... Kf2 {[%clk
0:01:36.4]} 50. Kh1 {[%clk 0:00:15.9]} 50... Qh3# {[%clk 0:01:36.4]} 0